fUST/lending_fUST_20250926
["ID","MTS","AMOUNT","RATE_DAILY","PERIOD"]
[387731529,1758828650986,-1000.0,0.00019342,2]
[387731530,1758828650996,-280.0,0.00019342,2]
[387731531,1758828651005,-151.0,0.00019352,2]
[387731532,1758828651014,-82.03239005,0.00019352,2]
[387731533,1758828651032,-68.96760995,0.00019352,2]
[387731534,1758828651042,-151.0,0.00019352,2]
[387731535,1758828651053,-151.0,0.00019352,2]
[387731536,1758828651063,-232.15078335,0.00019352,2]
[387731537,1758828651072,-131.93124984,0.00019352,2]
[387731541,1758828818912,-312.42962188,0.00019097,2]
[387731542,1758828822398,-290.8918336,0.00019097,2]
[387731543,1758828824439,-0.14490606,0.00019097,2]
[387731544,1758828837448,150.01,0.00019,2]
[387731554,1758829097848,-233.55461622,0.00019095,2]
[387731555,1758829102185,-177.8110459,0.00019095,2]
[387731556,1758829109881,-116.66740421,0.00019095,2]
[387731578,1758829117257,174.690978,0.00018343,2]
[387731581,1758829320223,764.914268,0.00018195,2]
[387731585,1758829379463,-220.65314496,0.00019093,2]
[387731586,1758829386036,-157.26618734,0.00019093,2]
[387731587,1758829391288,-84.10960073,0.00019093,2]
[387731596,1758829470920,250.0,0.00018974,2]
[387731664,1758829831851,-157.26618734,0.00019085,2]
[387731666,1758829831861,-187.88359438,0.0001909,2]
[387731706,1758829837705,-606.80969792,0.00019175,2]
[387731707,1758829837715,-804.0,0.00019185,2]
[387731708,1758829837725,-300.0,0.00019185,2]
[387731709,1758829837734,-300.0,0.00019185,2]
[387731710,1758829837744,-1200.0,0.00019186,2]
[387731711,1758829837753,-500.0,0.00019186,2]
[387731712,1758829837762,-500.0,0.00019186,2]
[387731713,1758829837771,-500.0,0.00019186,2]
[387731714,1758829837781,-500.0,0.00019186,2]
[387731715,1758829837790,-500.0,0.00019186,2]
[387731716,1758829837799,-241.99433168,0.00019186,2]
[387731717,1758829837811,-258.00566832,0.00019186,2]
[387731718,1758829837824,-500.0,0.00019186,2]
[387731719,1758829837834,-500.0,0.00019186,2]
[387731720,1758829837844,-500.0,0.00019186,2]
[387731721,1758829837853,-500.0,0.00019186,2]
[387731722,1758829837863,-500.0,0.00019186,2]
[387731723,1758829837872,-2738.63197169,0.00019187,2]
[387731731,1758829840035,-1220.19928938,0.00019187,2]
[387731732,1758829840045,-187.15,0.00019187,3]
[387731733,1758829840054,-561.49,0.00019187,3]
[387731734,1758829840064,-373.16,0.00019188,3]
[387731735,1758829840074,-186.58,0.00019188,3]
[387731736,1758829840083,-559.76,0.00019188,3]
[387731737,1758829840093,-480.0,0.00019189,2]
[387731738,1758829840104,-480.0,0.00019189,2]
[387731739,1758829840113,-480.0,0.00019189,2]
[387731740,1758829840123,-480.0,0.00019189,2]
[387731741,1758829840133,-924.57,0.00019189,2]
[387731742,1758829840142,-480.0,0.00019189,2]
[387731743,1758829840152,-480.0,0.00019189,2]
[387731744,1758829840161,-500.0,0.00019189,2]
[387731745,1758829840171,-371.84525027,0.00019189,2]
[387731746,1758829840180,-420.07127771,0.00019189,2]
[387731747,1758829840190,-500.0,0.00019189,2]
[387731757,1758829840199,-500.0,0.00019189,2]
[387731759,1758829840292,-500.0,0.00019189,2]
[387731761,1758829840302,-500.0,0.00019189,2]
[387731762,1758829840311,-500.0,0.00019189,2]
[387731763,1758829840320,-500.0,0.00019189,2]
[387731765,1758829840330,-500.0,0.00019189,2]
[387731767,1758829840339,-574.4991759,0.00019189,2]
[387731769,1758829840350,-500.0,0.00019189,2]
[387731770,1758829840360,-500.0,0.00019189,2]
[387731772,1758829840369,-500.0,0.00019189,2]
[387731773,1758829840379,-500.0,0.00019189,2]
[387731774,1758829840389,-500.0,0.00019189,2]
[387731775,1758829840400,-500.0,0.00019189,2]
[387731776,1758829840410,-500.0,0.00019189,2]
[387731777,1758829840419,-500.0,0.00019189,2]
[387731778,1758829840429,-169.14317515,0.00019189,2]
[387731779,1758829840440,-500.0,0.00019189,2]
[387731780,1758829840450,-500.0,0.00019189,2]
[387731781,1758829840459,-500.0,0.00019189,2]
[387731782,1758829840471,-500.0,0.00019189,2]
[387731783,1758829840480,-500.0,0.00019189,2]
[387731784,1758829840490,-500.0,0.00019189,2]
[387731785,1758829840499,-500.0,0.00019189,2]
[387731786,1758829840509,-500.0,0.00019189,2]
[387731787,1758829840518,-500.0,0.00019189,2]
[387731788,1758829840528,-500.0,0.00019189,2]
[387731790,1758829840537,-500.0,0.00019189,2]
[387731792,1758829840546,-500.0,0.00019189,2]
[387731794,1758829840556,-500.0,0.00019189,2]
[387731795,1758829840565,-500.0,0.00019189,2]
[387731797,1758829840574,-500.0,0.00019189,2]
[387731798,1758829840585,-500.0,0.00019189,2]
[387731799,1758829840595,-500.0,0.00019189,2]
[387731801,1758829840605,-500.0,0.00019189,2]
[387731802,1758829840614,-500.0,0.00019189,2]
[387731803,1758829840623,-500.0,0.00019189,2]
[387731804,1758829840633,-500.0,0.00019189,2]
[387731805,1758829840642,-500.0,0.00019189,2]
[387731806,1758829840652,-500.0,0.00019189,2]
[387731807,1758829840661,-500.0,0.00019189,2]
[387731808,1758829840670,-500.0,0.00019189,2]
[387731809,1758829840679,-500.0,0.00019189,2]
[387731810,1758829840689,-500.0,0.00019189,2]
[387731812,1758829840699,-500.0,0.00019189,2]
[387731814,1758829840709,-500.0,0.00019189,2]
[387731815,1758829840718,-500.0,0.00019189,2]
[387731816,1758829840728,-500.0,0.00019189,2]
[387731817,1758829840737,-500.0,0.00019189,2]
[387731818,1758829840747,-500.0,0.00019189,2]
[387731819,1758829840755,-500.0,0.00019189,2]
[387731820,1758829840765,-500.0,0.00019189,2]
[387731821,1758829840774,-500.0,0.00019189,2]
[387731822,1758829840783,-500.0,0.00019189,2]
[387731823,1758829840793,-500.0,0.00019189,2]
[387731824,1758829840802,-500.0,0.00019189,2]
[387731825,1758829840811,-200.0,0.00019189,2]
[387731826,1758829840822,-500.0,0.00019189,2]
[387731827,1758829840831,-500.0,0.00019189,2]
[387731828,1758829840841,-500.0,0.00019189,2]
[387731829,1758829840852,-500.0,0.00019189,2]
[387731830,1758829840861,-500.0,0.00019189,2]
[387731831,1758829840871,-500.0,0.00019189,2]
[387731832,1758829840880,-500.0,0.00019189,2]
[387731833,1758829840890,-500.0,0.00019189,2]
[387731834,1758829840899,-492.50341845,0.0001919,2]
[387731835,1758829840909,-480.70854724,0.0001919,2]
[387731836,1758829840919,-644.70341337,0.0001919,2]
[387731837,1758829840929,-500.0,0.0001919,2]
[387731838,1758829840938,-500.0,0.0001919,2]
[387731839,1758829840948,-500.0,0.0001919,2]
[387731840,1758829840957,-446.22274524,0.0001919,2]
[387731841,1758829840967,-500.0,0.0001919,2]
[387731842,1758829840977,-500.0,0.0001919,2]
[387731843,1758829840992,-500.0,0.0001919,2]
[387731844,1758829841007,-500.0,0.0001919,2]
[387731845,1758829841021,-500.0,0.0001919,2]
[387731846,1758829841034,-500.0,0.0001919,2]
[387731847,1758829841047,-500.0,0.0001919,2]
[387731848,1758829841062,-500.0,0.0001919,2]
[387731849,1758829841076,-500.0,0.0001919,2]
[387731850,1758829841089,-480.0,0.00019191,2]
[387731851,1758829841105,-480.0,0.00019191,2]
[387731852,1758829841117,-480.0,0.00019191,2]
[387731853,1758829841132,-480.0,0.00019191,2]
[387731854,1758829841143,-480.0,0.00019191,2]
[387731855,1758829841158,-484.50665114,0.00019191,2]
[387731856,1758829841171,-480.0,0.00019191,2]
[387731857,1758829841183,-452.04966293,0.00019191,2]
[387731858,1758829841195,-480.0,0.00019191,2]
[387731859,1758829841207,-480.0,0.00019191,2]
[387731860,1758829841221,-480.0,0.00019191,2]
[387731861,1758829841236,-480.0,0.00019191,2]
[387731862,1758829841249,-480.0,0.00019191,2]
[387731863,1758829841263,-273.33707768,0.00019191,2]
[387731864,1758829841279,-480.0,0.00019191,2]
[387731865,1758829841291,-237.47947786,0.00019191,2]
[387731866,1758829841302,-480.0,0.00019191,2]
[387731867,1758829841314,-187.7547109,0.00019191,2]
[387731868,1758829841329,-480.0,0.00019191,2]
[387731869,1758829841343,-480.0,0.00019191,2]
[387731870,1758829841355,-480.0,0.00019191,2]
[387731871,1758829841367,-480.0,0.00019191,2]
[387731872,1758829841380,-481.47537724,0.00019191,2]
[387731873,1758829841393,-488.48632724,0.00019191,2]
[387731874,1758829841406,-494.82086472,0.00019191,2]
[387731875,1758829841418,-480.0,0.00019191,2]
[387731876,1758829841430,-480.0,0.00019191,2]
[387731877,1758829841443,-480.0,0.00019191,2]
[387731878,1758829841456,-480.0,0.00019191,2]
[387731879,1758829841468,-480.0,0.00019191,2]
[387731880,1758829841482,-480.0,0.00019191,2]
[387731881,1758829841493,-462.58156036,0.00019191,2]
[387731882,1758829841506,-467.43626535,0.00019191,2]
[387731883,1758829841518,-462.58156036,0.00019191,2]
[387731884,1758829841530,-480.0,0.00019191,2]
[387731885,1758829841543,-480.0,0.00019191,2]
[387731886,1758829841555,-481.7001455,0.00019191,2]
[387731887,1758829841568,-480.0,0.00019191,2]
[387731888,1758829841580,-480.0,0.00019191,2]
[387731889,1758829841591,-3208.99,0.00019191,2]
[387731890,1758829841604,-480.0,0.00019191,2]
[387731891,1758829841616,-480.0,0.00019191,2]
[387731892,1758829841628,-480.0,0.00019191,2]
[387731893,1758829841640,-480.0,0.00019191,2]
[387731894,1758829841652,-514.49,0.00019191,2]
[387731895,1758829841663,-480.0,0.00019191,2]
[387731896,1758829841675,-480.0,0.00019191,2]
[387731897,1758829841687,-480.0,0.00019191,2]
[387731898,1758829841699,-480.0,0.00019191,2]
[387731899,1758829841712,-480.0,0.00019191,2]
[387731900,1758829841724,-493.94633238,0.00019191,2]
[387731901,1758829841735,-480.0,0.00019191,2]
[387731902,1758829841748,-745.33,0.00019191,2]
[387731903,1758829841760,-480.0,0.00019191,2]
[387731904,1758829841772,-1012.1,0.00019191,2]
[387731905,1758829841784,-480.0,0.00019191,2]
[387731906,1758829841796,-480.0,0.00019191,2]
[387731907,1758829841808,-106.40435183,0.00019191,2]
[387731922,1758829842955,-373.59564817,0.00019191,2]
[387731923,1758829842965,-481.35002153,0.00019191,2]
[387731924,1758829842974,-167.71646543,0.00019191,2]
[387731925,1758829842986,-312.28353457,0.00019191,2]
[387731926,1758829842995,-317.0225226,0.00019191,2]
[387731927,1758829843005,-181.28583979,0.00019191,2]
[387731928,1758829843016,-298.71416021,0.00019191,2]
[387731929,1758829843026,-480.0,0.00019191,2]
[387731930,1758829843036,-480.0,0.00019191,2]
[387731931,1758829843046,-480.0,0.00019191,2]
[387731932,1758829843058,-480.0,0.00019191,2]
[387731933,1758829843068,-480.0,0.00019191,2]
[387731934,1758829843078,-480.0,0.00019191,2]
[387731935,1758829843087,-480.0,0.00019191,2]
[387731936,1758829843097,-496.43604603,0.00019191,2]
[387731937,1758829843107,-480.0,0.00019191,2]
[387731938,1758829843117,-231.4204598,0.00019191,2]
[387731939,1758829843127,-673.47,0.00019191,2]
[387731940,1758829843136,-480.0,0.00019191,2]
[387731941,1758829843146,-480.0,0.00019191,2]
[387731942,1758829843156,-480.0,0.00019191,2]
[387731943,1758829843166,-573.7620046,0.00019191,2]
[387731944,1758829843176,-222.89820209,0.00019191,2]
[387731945,1758829843187,-257.10179791,0.00019191,2]
[387731946,1758829843197,-509.49366335,0.00019191,2]
[387731947,1758829843207,-483.47008726,0.00019191,2]
[387731948,1758829843216,-303.71532283,0.00019191,2]
[387731949,1758829843226,-480.0,0.00019191,2]
[387731950,1758829843236,-480.0,0.00019191,2]
[387731951,1758829843245,-480.0,0.00019191,2]
[387731952,1758829843255,-480.0,0.00019192,2]
[387731953,1758829843264,-480.0,0.00019192,2]
[387731954,1758829843273,-480.0,0.00019192,2]
[387731955,1758829843283,-480.0,0.00019192,2]
[387731956,1758829843292,-480.0,0.00019192,2]
[387731957,1758829843302,-480.0,0.00019192,2]
[387731958,1758829843311,-480.0,0.00019192,2]
[387731959,1758829843321,-480.0,0.00019192,2]
[387731960,1758829843330,-2204.27,0.00019192,2]
[387731961,1758829843339,-480.0,0.00019192,2]
[387731962,1758829843350,-654.8,0.00019192,2]
[387731963,1758829843360,-480.0,0.00019194,2]
[387731964,1758829843370,-480.0,0.00019194,2]
[387731965,1758829843379,-480.0,0.00019194,2]
[387731966,1758829843389,-480.0,0.00019194,2]
[387731967,1758829843402,-480.0,0.00019194,2]
[387731968,1758829843412,-480.0,0.00019194,2]
[387731969,1758829843421,-231.66486156,0.00019194,2]
[387731970,1758829843431,-480.0,0.00019194,2]
[387731971,1758829843441,-480.0,0.00019194,2]
[387731972,1758829843452,-480.0,0.00019194,2]
[387731973,1758829843462,-480.0,0.00019194,2]
[387731974,1758829843472,-480.0,0.00019194,2]
[387731975,1758829843482,-480.0,0.00019194,2]
[387731976,1758829843493,-480.0,0.00019194,2]
[387731977,1758829843502,-480.0,0.00019194,2]
[387731978,1758829843511,-480.0,0.00019194,2]
[387731979,1758829843521,-152.66003861,0.00019194,2]
[387731980,1758829843537,-327.33996139,0.00019194,2]
[387731981,1758829843546,-480.0,0.00019194,2]
[387731982,1758829843556,-480.0,0.00019194,2]
[387731983,1758829843567,-480.0,0.00019194,2]
[387731984,1758829843576,-472.47932866,0.00019194,2]
[387731985,1758829843587,-7.52067134,0.00019194,2]
[387731986,1758829843598,-409.73932865,0.00019194,2]
[387732000,1758829845840,-480.0,0.00019189,2]
[387732001,1758829845850,-480.0,0.00019189,2]
[387732002,1758829845860,-70.26067135,0.00019194,2]
[387732003,1758829845869,-480.0,0.00019194,2]
[387732004,1758829845879,-360.6784953,0.00019194,2]
[387732005,1758829845889,-136.1768868,0.00019194,2]
[387732006,1758829845910,-343.8231132,0.00019194,2]
[387732008,1758829845920,-323.77838623,0.00019194,2]
[387732012,1758829845947,-156.22161377,0.00019194,2]
[387732014,1758829845957,-480.0,0.00019194,2]
[387732016,1758829845966,-14.77713023,0.00019194,2]
[387732021,1758829846003,-465.22286977,0.00019194,2]
[387732023,1758829846013,-480.0,0.00019194,2]
[387732025,1758829846023,-480.0,0.00019194,2]
[387732027,1758829846032,-480.0,0.00019194,2]
[387732029,1758829846042,-480.0,0.00019194,2]
[387732031,1758829846051,-480.0,0.00019194,2]
[387732034,1758829846060,-504.9,0.00019194,2]
[387732035,1758829846070,-480.0,0.00019194,2]
[387732039,1758829846079,-480.0,0.00019194,2]
[387732041,1758829846089,-480.0,0.00019194,2]
[387732043,1758829846099,-267.36330729,0.00019194,2]
[387732045,1758829846108,-480.0,0.00019194,2]
[387732047,1758829846117,-166.86720902,0.00019194,2]
[387732049,1758829846127,-480.0,0.00019194,2]
[387732051,1758829846136,-480.0,0.00019194,2]
[387732053,1758829846146,-480.0,0.00019194,2]
[387732055,1758829846155,-480.0,0.00019194,2]
[387732057,1758829846164,-480.0,0.00019194,2]
[387732059,1758829846174,-480.0,0.00019194,2]
[387732061,1758829846183,-480.0,0.00019194,2]
[387732063,1758829846192,-480.0,0.00019194,2]
[387732074,1758829846287,-480.0,0.00019194,2]
[387732077,1758829846300,-480.0,0.00019194,2]
[387732079,1758829846309,-288.62879399,0.00019194,2]
[387732081,1758829846319,-480.0,0.00019194,2]
[387732083,1758829846329,-480.0,0.00019194,2]
[387732085,1758829846338,-480.0,0.00019194,2]
[387732087,1758829846347,-480.0,0.00019194,2]
[387732089,1758829846357,-480.0,0.00019194,2]
[387732091,1758829846366,-480.0,0.00019194,2]
[387732093,1758829846376,-480.0,0.00019194,2]
[387732095,1758829846386,-480.0,0.00019194,2]
[387732097,1758829846396,-480.0,0.00019194,2]
[387732098,1758829846407,-480.0,0.00019194,2]
[387732100,1758829846416,-480.0,0.00019194,2]
[387732103,1758829846425,-480.0,0.00019194,2]
[387732105,1758829846435,-480.0,0.00019194,2]
[387732107,1758829846445,-480.0,0.00019194,2]
[387732109,1758829846455,-480.0,0.00019194,2]
[387732111,1758829846464,-480.0,0.00019194,2]
[387732112,1758829846475,-480.0,0.00019194,2]
[387732115,1758829846485,-1092.16,0.00019194,2]
[387732117,1758829846495,-480.0,0.00019194,2]
[387732119,1758829846504,-480.0,0.00019194,2]
[387732120,1758829846514,-480.0,0.00019194,2]
[387732122,1758829846523,-480.0,0.00019194,2]
[387732124,1758829846532,-891.54,0.00019194,2]
[387732126,1758829846542,-480.0,0.00019194,2]
[387732128,1758829846551,-480.0,0.00019194,2]
[387732130,1758829846561,-480.0,0.00019194,2]
[387732133,1758829846570,-480.0,0.00019194,2]
[387732134,1758829846580,-480.0,0.00019194,2]
[387732137,1758829846590,-480.0,0.00019194,2]
[387732139,1758829846602,-480.0,0.00019194,2]
[387732141,1758829846611,-480.0,0.00019194,2]
[387732143,1758829846621,-480.40358358,0.00019195,2]
[387732145,1758829846633,-480.0,0.00019195,2]
[387732147,1758829846642,-475.41570051,0.00019195,2]
[387732149,1758829846650,-2171.91,0.00019195,2]
[387732151,1758829846660,-480.0,0.00019195,2]
[387732153,1758829846670,-1305.36,0.00019195,2]
[387732155,1758829846681,-480.0,0.00019195,2]
[387732157,1758829846690,-1927.35,0.00019195,2]
[387732159,1758829846699,-490.16836839,0.00019195,2]
[387732161,1758829846709,-480.0,0.00019195,2]
[387732163,1758829846718,-343.32185004,0.00019196,2]
[387732165,1758829846727,-198.42318993,0.00019196,2]
[387732167,1758829846736,-480.0,0.00019196,2]
[387732169,1758829846746,-480.0,0.00019196,2]
[387732171,1758829846755,-480.0,0.00019196,2]
[387732173,1758829846764,-480.0,0.00019196,2]
[387732175,1758829846773,-377.55053777,0.00019196,2]
[387732177,1758829846782,-494.03911496,0.00019196,2]
[387732179,1758829846792,-480.0,0.00019196,2]
[387732181,1758829846801,-480.0,0.00019196,2]
[387732183,1758829846810,-480.0,0.00019196,2]
[387732185,1758829846819,-482.55143365,0.00019197,2]
[387732187,1758829846828,-484.02200926,0.00019197,2]
[387732189,1758829846837,-482.52040208,0.00019197,2]
[387732191,1758829846846,-480.0,0.00019197,2]
[387732193,1758829846857,-480.0,0.00019197,2]
[387732195,1758829846867,-480.0,0.00019197,2]
[387732197,1758829846877,-480.0,0.00019197,2]
[387732199,1758829846886,-12.78065452,0.00019197,2]
[387732334,1758830773865,382.457134,0.00018187,2]
[387732337,1758830894283,2228.86535372,0.0001908,2]
[387732338,1758830894305,10000.01,0.0001908,2]
[387732339,1758830894326,2204.09166889,0.0001908,2]
[387732904,1758831037907,-500.0,0.00019089,2]
[387732905,1758831037917,-220.65314496,0.000191,2]
[387732906,1758831037927,-300.0,0.00019184,2]
[387732907,1758831037936,-866.02397256,0.00019184,2]
[387732908,1758831038014,-333.97602744,0.00019184,2]
[387732909,1758831038023,-500.0,0.00019185,2]
[387732910,1758831038033,-157.78569752,0.00019185,2]
[387732911,1758831038042,-174.94435288,0.00019185,2]
[387732912,1758831038052,-286.91431751,0.00019185,2]
[387732913,1758831038061,-500.0,0.00019185,2]
[387732914,1758831038071,-500.0,0.00019185,2]
[387732915,1758831038080,-500.0,0.00019185,2]
[387732916,1758831038089,-500.0,0.00019185,2]
[387732917,1758831038099,-500.0,0.00019185,2]
[387732918,1758831038109,-480.0,0.00019186,2]
[387732919,1758831038118,-480.0,0.00019186,2]
[387732921,1758831038127,-480.0,0.00019186,2]
[387732922,1758831038136,-221.61971798,0.00019186,2]
[387732923,1758831038146,-480.0,0.00019186,2]
[387732924,1758831038156,-357.44192144,0.00019186,2]
[387732925,1758831038165,-500.0,0.00019186,2]
[387732926,1758831038175,-451.29238936,0.00019186,2]
[387732927,1758831038184,-273.20099032,0.00019186,2]
[387732928,1758831038194,-500.0,0.00019186,2]
[387732929,1758831038203,-323.38582218,0.00019186,2]
[387732930,1758831038215,-176.61417782,0.00019186,2]
[387732931,1758831038224,-500.0,0.00019186,2]
[387732932,1758831038233,-500.0,0.00019186,2]
[387732933,1758831038243,-500.0,0.00019186,2]
[387732934,1758831038252,-512.35592167,0.00019186,2]
[387732935,1758831038262,-500.0,0.00019186,2]
[387732936,1758831038272,-500.0,0.00019186,2]
[387732937,1758831038281,-199.60268833,0.00019186,2]
[387732938,1758831038292,-300.39731167,0.00019186,2]
[387732939,1758831038303,-463.75580595,0.00019186,2]
[387732940,1758831038312,-500.0,0.00019186,2]
[387732941,1758831038321,-500.0,0.00019186,2]
[387732942,1758831038331,-500.0,0.00019186,2]
[387732943,1758831038341,-500.0,0.00019186,2]
[387732944,1758831038351,-162.16181499,0.00019186,2]
[387732945,1758831038360,-500.0,0.00019186,2]
[387732946,1758831038370,-21.28506739,0.00019186,2]
[387732947,1758831038383,-478.71493261,0.00019186,2]
[387732948,1758831038393,-400.0,0.00019186,2]
[387732949,1758831038402,-500.0,0.00019186,2]
[387732950,1758831038412,-69.6956172,0.00019186,2]
[387732951,1758831038424,-430.3043828,0.00019186,2]
[387732952,1758831038433,-480.0,0.00019186,2]
[387732953,1758831038443,-480.0,0.00019186,2]
[387732954,1758831038452,-480.0,0.00019186,2]
[387732955,1758831038462,-480.0,0.00019186,2]
[387732956,1758831038471,-480.0,0.00019186,2]
[387732957,1758831038480,-480.0,0.00019186,2]
[387732958,1758831038490,-909.77,0.00019186,2]
[387732959,1758831038499,-507.46952212,0.00019186,2]
[387732960,1758831038508,-480.0,0.00019186,2]
[387732961,1758831038517,-480.0,0.00019186,2]
[387732962,1758831038527,-746.9,0.00019187,3]
[387732963,1758831038536,-480.0,0.00019187,2]
[387732964,1758831038546,-307.18023775,0.00019187,2]
[387732965,1758831038555,-480.0,0.00019187,2]
[387732966,1758831038564,-480.0,0.00019187,2]
[387732967,1758831038574,-280.7640216,0.00019187,2]
[387732968,1758831038583,-480.0,0.00019187,2]
[387732969,1758831038592,-480.0,0.00019187,2]
[387732970,1758831038602,-461.6475741,0.00019187,2]
[387732971,1758831038611,-480.0,0.00019187,2]
[387732972,1758831038621,-367.45733341,0.00019187,2]
[387732973,1758831038630,-480.0,0.00019187,2]
[387732975,1758831038640,-480.0,0.00019187,2]
[387732977,1758831038649,-480.0,0.00019187,2]
[387732978,1758831038658,-578.58328159,0.00019187,2]
[387732979,1758831038668,-480.0,0.00019187,2]
[387732980,1758831038677,-480.0,0.00019187,2]
[387732981,1758831038686,-480.0,0.00019187,2]
[387732982,1758831038696,-179.22427373,0.00019187,2]
[387732983,1758831038707,-300.77572627,0.00019187,2]
[387732984,1758831038716,-258.61017968,0.00019187,2]
[387732985,1758831038733,-221.38982032,0.00019187,2]
[387732986,1758831038745,-282.93036273,0.00019187,2]
[387733172,1758831042780,-480.0,0.00019186,2]
[387733174,1758831042791,-197.06963727,0.00019187,2]
[387733176,1758831042800,-462.39140963,0.00019187,2]
[387733178,1758831042811,-17.60859037,0.00019187,2]
[387733180,1758831042820,-480.0,0.00019187,2]
[387733182,1758831042829,-104.37222584,0.00019187,2]
[387733184,1758831042841,-375.62777416,0.00019187,2]
[387733186,1758831042850,-187.64882949,0.00019187,2]
[387733198,1758831042952,-292.35117051,0.00019187,2]
[387733200,1758831042964,-480.0,0.00019187,2]
[387733202,1758831042973,-480.0,0.00019187,2]
[387733204,1758831042983,-480.0,0.00019187,2]
[387733206,1758831042992,-494.75377499,0.00019187,2]
[387733208,1758831043001,-489.53703657,0.00019187,2]
[387733209,1758831043010,-480.0,0.00019187,2]
[387733210,1758831043019,-340.72541776,0.00019187,2]
[387733211,1758831043028,-480.0,0.00019187,2]
[387733212,1758831043038,-482.0621899,0.00019187,2]
[387733213,1758831043047,-480.0,0.00019187,2]
[387733214,1758831043056,-480.0,0.00019187,2]
[387733215,1758831043065,-480.0,0.00019187,2]
[387733216,1758831043075,-480.0,0.00019187,2]
[387733217,1758831043084,-480.0,0.00019187,2]
[387733218,1758831043094,-486.41493986,0.00019187,2]
[387733219,1758831043103,-480.0,0.00019187,2]
[387733220,1758831043112,-480.0,0.00019187,2]
[387733221,1758831043122,-480.0,0.00019187,2]
[387733222,1758831043131,-480.0,0.00019187,2]
[387733223,1758831043141,-480.0,0.00019187,2]
[387733224,1758831043150,-480.0,0.00019187,2]
[387733225,1758831043159,-480.0,0.00019187,2]
[387733226,1758831043167,-262.84898968,0.00019187,2]
[387733227,1758831043179,-217.15101032,0.00019187,2]
[387733228,1758831043188,-480.0,0.00019187,2]
[387733229,1758831043196,-480.0,0.00019187,2]
[387733230,1758831043205,-480.0,0.00019187,2]
[387733231,1758831043214,-480.0,0.00019187,2]
[387733232,1758831043224,-480.0,0.00019187,2]
[387733233,1758831043233,-503.86,0.00019187,2]
[387733234,1758831043242,-3410.84,0.00019187,2]
[387733235,1758831043251,-480.0,0.00019187,2]
[387733236,1758831043260,-296.0339241,0.00019187,2]
[387733237,1758831043269,-480.0,0.00019187,2]
[387733238,1758831043279,-533.05,0.00019187,2]
[387733239,1758831043288,-480.0,0.00019187,2]
[387733240,1758831043297,-480.0,0.00019187,2]
[387733242,1758831043306,-480.0,0.00019187,2]
[387733243,1758831043314,-480.0,0.00019187,2]
[387733244,1758831043323,-480.0,0.00019187,2]
[387733245,1758831043332,-480.0,0.00019187,2]
[387733246,1758831043341,-480.0,0.00019187,2]
[387733247,1758831043350,-480.0,0.00019187,2]
[387733248,1758831043359,-327.26679449,0.00019187,2]
[387733249,1758831043369,-480.0,0.00019187,2]
[387733250,1758831043378,-480.0,0.00019187,2]
[387733251,1758831043387,-480.0,0.00019187,2]
[387733252,1758831043396,-755.91,0.00019187,2]
[387733253,1758831043405,-480.0,0.00019187,2]
[387733254,1758831043414,-480.0,0.00019187,2]